[Event "WYCC 2018 G14"]
[Site "Halkidiki"]
[Date "2018.10.22"]
[Round "4"]
[White "Dylag, Emilia"]
[Black "Song, Yuxin"]
[Result "0-1"]
[ECO "A17"]
[WhiteElo "2059"]
[BlackElo "2178"]
[Annotator "NA"]
[PlyCount "124"]
[EventDate "2018.10.20"]
[EventType "swiss"]
[EventCountry "GRE"]
[SourceTitle "playchess.com"]
[Source "ChessBase"]
[SourceQuality "1"]
[TimeControl "40/5400+30:1800+30"]

1. Nf3 Nf6 2. c4 e6 3. Nc3 Bb4 4. Qc2 O-O 5. a3 Bxc3 6. Qxc3 b6 7. b4 Bb7 8. Bb2 d6 9. e3 e5 10. d3 Nbd7 11. Be2 Re8 12. O-O c5 13. Qb3 d5 14. Rfd1 Rb8 15. b5 d4 16. e4 a5 17. bxa6 Bxa6 18. a4 Ra8 19. Rdb1 Ra7 20. Bc1 Bb7 21. Ra2 Bc6 22. Bd1 Qc7 23. Bg5 Ra6 24. Nh4 Rea8 25. Rba1 Ne8 26. Nf5 f6 27. Bd2 Nf8 28. g3 Ne6 29. Ra3 g6 30. Nh4 Nd6 31. f4 exf4 32. gxf4 f5 33. e5 Nf7 34. Bf3 g5 35. Bxc6 Qxc6 36. Nxf5 Qf3 37. Qd1 Qxd1+ 38. Rxd1 gxf4 39. Ne7+ Kh8 40. Re1 Nfg5 41. Kf2 Rxa4 42. Rxa4 Rxa4 43. h4 Ra2 44. Rd1 Nf7 45. Kf3 Ra7 46. Nd5 Nxe5+ 47. Ke4 Ng4 48. Kf5 Nf2 49. Rf1 Ng7+ 50. Kxf4 Rf7+ 51. Kg3 Ne4+ 52. dxe4 Rxf1 53. Nxb6 Ne6 54. Nd7 Rd1 55. Ba5 Rc1 56. Ne5 Kg7 57. Kf3 Kf6 58. Nd7+ Kg6 59. Bd2 Rc2 60. Be1 Kh5 61. Nb6 d3 62. Ke3 Re2+ 0-1

[Event "WYCC 2018 G14"]
[Site "Halkidiki"]
[Date "2018.10.22"]
[Round "4"]
[White "Mehmed, Elif"]
[Black "Eizaguerri Floris, Maria"]
[Result "1-0"]
[ECO "B46"]
[WhiteElo "2049"]
[BlackElo "1987"]
[Annotator "NA"]
[PlyCount "71"]
[EventDate "2018.10.20"]
[EventType "swiss"]
[EventCountry "GRE"]
[SourceTitle "playchess.com"]
[Source "ChessBase"]
[SourceQuality "1"]
[TimeControl "40/5400+30:1800+30"]

1. e4 {[%emt 0:00:00]} c5 {[%emt 0:00:00]} 2. Nf3 {[%emt 0:00:00]} e6 {[%emt 0:00:00]} 3. d4 {[%emt 0:00:00]} cxd4 {[%emt 0:00:00]} 4. Nxd4 {[%emt 0:00:00]} Nc6 {[%emt 0:00:00]} 5. Nc3 {[%emt 0:00:00]} a6 {[%emt 0:00:00]} 6. Bf4 {[%emt 0:00:03]} d6 {[%emt 0:10:31]} 7. Bg3 {[%emt 0:02:42]} Nf6 {[%emt 0:01:44]} 8. Be2 {[%emt 0:00:04]} Be7 {[%emt 0:00:39]} 9. Nxc6 {[%emt 0:00:33]} bxc6 {[%emt 0:00:07]} 10. e5 {[%emt 0:00:10]} Nd5 {[%emt 0:01:34]} 11. exd6 {[%emt 0:02:06]} Bxd6 {[%emt 0:00:10]} 12. Ne4 {[%emt 0:00:06]} Bxg3 {[%emt 0:04:38]} 13. hxg3 {[%emt 0:00:04]} O-O {[%emt 0:03:53]} 14. c4 {[%emt 0:24:16]} Qa5+ {[%emt 0:05:18]} 15. Qd2 {[%emt 0:01:44]} Qxd2+ {[%emt 0:01:26]} 16. Kxd2 {[%emt 0:00:46]} Nc7 {[%emt 0:02:01]} 17. Kc3 {[%emt 0:03:25]} e5 {[%emt 0:02:59]} 18. Nc5 {[%emt 0:09:31]} f5 {[%emt 0:14:44]} 19. Rad1 {[%emt 0:04:16]} Rb8 {[%emt 0:08:38]} 20. Rd6 {[%emt 0:05:37]} Rb6 {[%emt 0:00:29]} 21. Rhd1 {[%emt 0:05:03]} a5 {[%emt 0:08:51]} 22. R1d2 {[%emt 0:19:19]} Re8 {[%emt 0:08:15]} 23. a3 {[%emt 0:02:46]} Kf7 {[%emt 0:06:05]} 24. b4 {[%emt 0:01:45]} axb4+ {[%emt 0:02:32]} 25. axb4 {[%emt 0:00:05]} Ne6 {[%emt 0:01:20]} 26. Nxe6 {[%emt 0:00:46]} Rxe6 {[%emt 0:02:53]} 27. c5 {[%emt 0:02:05]} Rxd6 {[%emt 0:01:36]} 28. Rxd6 {[%emt 0:00:09]} Ke7 {[%emt 0:01:35]} 29. Bc4 {[%emt 0:02:35]} e4 {[%emt 0:02:56]} 30. Bd5 {[%emt 0:04:00]} Bd7 {[%emt 0:04:45]} 31. Re6+ {[%emt 0:01:29]} Bxe6 {[%emt 0:02:05]} 32. cxb6 {[%emt 0:00:05]} Bxd5 {[%emt 0:00:43]} 33. b7 {[%emt 0:00:04]} g5 {[%emt 0:00:36]} 34. b8=Q {[%emt 0:00:05]} h5 {[%emt 0:00:20]} 35. Qe5+ {[%emt 0:00:06]} Be6 {[%emt 0:00:05]} 36. Qg7+ {[%emt 0:00:06]} 1-0

[Event "WYCC 2018 G14"]
[Site "Halkidiki"]
[Date "2018.10.22"]
[Round "4"]
[White "Dhyana Patel"]
[Black "Caglar, Sila"]
[Result "0-1"]
[ECO "B53"]
[WhiteElo "2002"]
[BlackElo "2184"]
[Annotator "NA"]
[PlyCount "82"]
[EventDate "2018.10.20"]
[EventType "swiss"]
[EventCountry "GRE"]
[SourceTitle "playchess.com"]
[Source "ChessBase"]
[SourceQuality "1"]
[TimeControl "40/5400+30:1800+30"]

1. e4 {[%emt 0:00:00]} c5 {[%emt 0:00:00]} 2. Nf3 {[%emt 0:00:00]} d6 {[%emt 0:00:00]} 3. d4 {[%emt 0:00:21]} cxd4 {[%emt 0:00:00]} 4. Qxd4 {[%emt 0:00:18]} Nf6 {[%emt 0:00:00]} 5. Bb5+ {[%emt 0:00:47] B53: Sicilian: 2...d6: Lines with Qxd4} (5. Be2 Nc6 6. Qe3 Bg4 7. O-O g6 8. Rd1 Bxf3 9. Bxf3 Bg7 10. c4 Qc7 11. Nc3 Ne5 12. b3 Nxf3+ 13. Qxf3 {1-0 (33) Harikrishna,P (2732)-Navara,D (2727) Prague 2018}) 5... Bd7 {[%emt 0:00:00]} 6. Bxd7+ {[%emt 0:01:48]} Qxd7 {[%emt 0:03:04]} 7. c4 {[%emt 0:02:00]} Qg4 {[%emt 0:03:32]} 8. O-O {[%emt 0:02:13]} Nc6 {[%emt 0:08:06]} 9. Qd3 {[%emt 0:02:13]} Qxe4 {[%emt 0:02:32]} 10. Qxe4 $146 {[%emt 0:02:47]} ({Predecessor:} 10. Qb3 Rb8 11. Nc3 Qf5 12. Nd5 Qd7 {0-1 (37) Bozinovic,B (1969)-Vucinic,G (2294) Veliko Gradiste 2016}) 10... Nxe4 {[%emt 0:00:13]} 11. Re1 {[%emt 0:00:12]} Nc5 {[%emt 0:02:45]} 12. Nc3 {[%emt 0:01:59]} e6 {[%emt 0:03:59]} 13. Be3 {[%emt 0:04:07]} O-O-O {[%emt 0:05:36]} 14. Rad1 {[%emt 0:00:58]} Be7 {[%emt 0:06:27]} 15. a3 {[%emt 0:00:54]} b6 {[%emt 0:11:51]} 16. b4 {[%emt 0:01:21]} Nd7 {[%emt 0:04:20]} 17. Bf4 {[%emt 0:02:40]} Nde5 {[%emt 0:04:54]} 18. Nxe5 {[%emt 0:10:08]} dxe5 {[%emt 0:02:09]} ({Much weaker is} 18... Nxe5 $6 19. c5 $11) 19. Be3 {[%emt 0:00:53]} Kb7 {[%emt 0:07:26]} 20. Ne4 $17 {[%emt 0:01:24]} f5 {[%emt 0:08:05]} 21. Nc3 {[%emt 0:03:40]} Rxd1 {[%emt 0:07:40]} 22. Rxd1 {[%emt 0:00:24]} Rd8 {[%emt 0:00:05]} 23. Rxd8 {[%emt 0:01:16]} Bxd8 {[%emt 0:00:15]} 24. f3 {[%emt 0:03:01]} a5 {[%emt 0:06:47]} 25. Na2 {[%emt 0:02:32]} Nd4 {[%emt 0:03:48]} 26. Bxd4 {[%emt 0:01:02]} exd4 {[%emt 0:00:04]} 27. f4 {[%emt 0:00:23]} g5 {[%emt 0:00:12]} 28. Nc1 {[%emt 0:03:28]} axb4 {[%emt 0:01:52]} 29. axb4 {[%emt 0:00:18]} gxf4 {[%emt 0:00:05]} 30. Nd3 {[%emt 0:00:17]} Bc7 {[%emt 0:00:29]} 31. b5 {[%emt 0:01:25]} Bd6 {[%emt 0:01:06]} 32. Kf2 {[%emt 0:00:20]} e5 {[%emt 0:00:05]} 33. Ke2 {[%emt 0:00:44]} e4 {[%emt 0:00:09]} 34. Nc1 {[%emt 0:00:19]} Bb4 {[%emt 0:02:23]} 35. Na2 {[%emt 0:01:31]} Ba5 {[%emt 0:01:47]} 36. Nc1 {[%emt 0:00:13]} d3+ {[%emt 0:00:38]} 37. Kd1 {[%emt 0:01:28]} Kc7 {[%emt 0:00:31]} 38. h3 {[%emt 0:00:53]} h6 {[%emt 0:00:15]} 39. h4 {[%emt 0:00:19]} h5 {[%emt 0:00:02]} 40. Nb3 {[%emt 0:00:00]} e3 {[%emt 0:00:00]} 41. c5 {[%emt 0:02:06]} e2+ {[%emt 0:00:32]} 0-1

[Event "WYCC 2018 G14"]
[Site "Halkidiki"]
[Date "2018.10.22"]
[Round "4"]
[White "Mrudul Dehankar"]
[Black "Behzad Nazif, Parva"]
[Result "1-0"]
[ECO "C63"]
[WhiteElo "1996"]
[BlackElo "1859"]
[Annotator "NA"]
[PlyCount "69"]
[EventDate "2018.10.20"]
[EventType "swiss"]
[EventCountry "GRE"]
[SourceTitle "playchess.com"]
[Source "ChessBase"]
[SourceQuality "1"]
[TimeControl "40/5400+30:1800+30"]

1. e4 {[%emt 0:00:00]} e5 {[%emt 0:00:00]} 2. Nf3 {[%emt 0:01:31]} Nc6 {[%emt 0:00:00]} 3. Bb5 {[%emt 0:00:07]} f5 {[%emt 0:00:14]} 4. d3 {[%emt 0:00:32]} fxe4 {[%emt 0:00:16]} 5. dxe4 {[%emt 0:00:10]} Nf6 {[%emt 0:00:38]} 6. O-O {[%emt 0:02:53]} d6 {[%emt 0:01:31]} 7. h3 {[%emt 0:02:38]} Be7 {[%emt 0:00:59]} 8. Nc3 {[%emt 0:01:34]} O-O {[%emt 0:06:39]} 9. Bc4+ {[%emt 0:06:38]} Kh8 {[%emt 0:00:35]} 10. Ng5 {[%emt 0:01:13]} Qe8 {[%emt 0:01:26]} 11. Ne6 {[%emt 0:06:04]} Na5 {[%emt 0:05:42]} 12. Nxc7 $16 {[%emt 0:13:39]} ({Stronger than} 12. Nxf8 Nxc4 13. Nxh7 Kxh7 $17) 12... Qd7 {[%emt 0:07:04]} 13. Nxa8 {[%emt 0:02:26]} Nxc4 {[%emt 0:00:07]} 14. Qd3 {[%emt 0:07:29]} Qc6 {[%emt 0:15:04]} 15. Nd5 {[%emt 0:13:38]} Bd8 {[%emt 0:03:40]} 16. b3 {[%emt 0:03:48]} Na5 {[%emt 0:00:41]} 17. b4 {[%emt 0:03:45]} Nc4 {[%emt 0:01:25]} 18. b5 {[%emt 0:01:56]} Qc5 {[%emt 0:02:47]} 19. Be3 {[%emt 0:08:40]} Nxe3 {[%emt 0:00:19]} 20. Qxe3 Qc4 {[%emt 0:01:12]} 21. Nxf6 {[%emt 0:02:31]} gxf6 {[%emt 0:00:39]} 22. b6 {[%emt 0:01:41]} axb6 {[%emt 0:06:55]} 23. Nxb6 {[%emt 0:03:02]} Bxb6 {[%emt 0:00:49]} 24. Qxb6 {[%emt 0:00:05]} Bxh3 {[%emt 0:06:41]} 25. Qe3 {[%emt 0:12:47]} Bd7 {[%emt 0:02:12]} 26. Rad1 {[%emt 0:01:19]} Bb5 {[%emt 0:01:30]} 27. Rfe1 {[%emt 0:00:32]} Qxc2 {[%emt 0:02:12]} 28. Rxd6 {[%emt 0:00:27]} Qxa2 {[%emt 0:00:25]} 29. Qh6 {[%emt 0:01:15]} Qf7 {[%emt 0:00:28]} 30. f4 {[%emt 0:01:46]} Bc4 {[%emt 0:05:29]} 31. Re3 {[%emt 0:00:35]} Qe7 {[%emt 0:02:32]} 32. Rd2 {[%emt 0:00:43]} Qc5 {[%emt 0:01:03]} 33. fxe5 {[%emt 0:00:20]} fxe5 {[%emt 0:03:00]} 34. Rd7 {[%emt 0:00:22]} Bf7 {[%emt 0:00:14]} 35. Kh2 {[%emt 0:00:29]} 1-0

[Event "WYCC 2018 G14"]
[Site "Halkidiki"]
[Date "2018.10.22"]
[Round "4"]
[White "Matus, Nastassja"]
[Black "Zaritovskaja, Margarita"]
[Result "1/2-1/2"]
[ECO "A87"]
[WhiteElo "1983"]
[BlackElo "1731"]
[Annotator "NA"]
[PlyCount "81"]
[EventDate "2018.10.20"]
[EventType "swiss"]
[EventCountry "GRE"]
[SourceTitle "playchess.com"]
[Source "ChessBase"]
[SourceQuality "1"]
[TimeControl "40/5400+30:1800+30"]

1. c4 {[%emt 0:00:00]} f5 {[%emt 0:00:00]} 2. d4 {[%emt 0:00:57]} Nf6 {[%emt 0:00:00]} 3. g3 {[%emt 0:00:34]} g6 {[%emt 0:00:15]} 4. Bg2 {[%emt 0:00:15]} Bg7 {[%emt 0:00:15]} 5. Nf3 {[%emt 0:00:25]} O-O {[%emt 0:00:42]} 6. b3 {[%emt 0:03:13]} d6 {[%emt 0:00:45]} 7. Bb2 {[%emt 0:00:35]} c6 {[%emt 0:01:06]} 8. O-O {[%emt 0:01:11]} Na6 {[%emt 0:03:26]} 9. Nbd2 {[%emt 0:03:24]} Nd7 {[%emt 0:06:48]} 10. e4 {[%emt 0:11:25]} fxe4 {[%emt 0:09:00]} 11. Nxe4 {[%emt 0:00:24]} Nf6 {[%emt 0:00:54]} 12. Nxf6+ {[%emt 0:12:54]} exf6 {[%emt 0:05:37]} 13. Re1 {[%emt 0:09:07]} d5 {[%emt 0:15:54]} 14. Qd2 {[%emt 0:04:48]} Bd7 {[%emt 0:08:53]} 15. Re2 {[%emt 0:11:06]} Qc7 {[%emt 0:03:44]} 16. Rae1 {[%emt 0:06:02]} Rfe8 {[%emt 0:01:27]} 17. Bc1 {[%emt 0:05:34]} Rxe2 {[%emt 0:07:40]} 18. Rxe2 {[%emt 0:00:37]} Re8 {[%emt 0:00:06]} 19. Rxe8+ {[%emt 0:03:31]} Bxe8 {[%emt 0:00:06]} 20. Qe2 {[%emt 0:03:45]} Bf7 {[%emt 0:12:06]} 21. c5 {[%emt 0:05:56]} Qd7 {[%emt 0:02:26]} 22. Bd2 {[%emt 0:02:23]} Nc7 {[%emt 0:02:10]} 23. b4 {[%emt 0:00:43]} b6 {[%emt 0:05:04]} 24. Qe3 {[%emt 0:04:43]} b5 {[%emt 0:04:30]} 25. h4 {[%emt 0:01:13]} Ne8 {[%emt 0:02:55]} 26. Kh2 {[%emt 0:00:50]} Be6 {[%emt 0:00:28]} 27. Ne1 {[%emt 0:00:37]} Bf8 {[%emt 0:01:00]} 28. Nd3 {[%emt 0:00:39]} Ng7 {[%emt 0:00:27]} 29. Nf4 {[%emt 0:00:46]} Bf5 {[%emt 0:00:32]} 30. f3 {[%emt 0:01:11]} Ne6 {[%emt 0:01:19]} 31. Nxe6 {[%emt 0:01:39]} Qxe6 {[%emt 0:00:04]} 32. g4 {[%emt 0:01:19]} Qxe3 {[%emt 0:00:54]} 33. Bxe3 {[%emt 0:00:01]} Bd7 {[%emt 0:00:19]} 34. Kg3 {[%emt 0:00:44]} Kf7 {[%emt 0:00:32]} 35. Bh3 {[%emt 0:01:45]} h6 {[%emt 0:01:59]} 36. Bf1 {[%emt 0:00:46]} f5 {[%emt 0:01:48]} 37. Bd3 {[%emt 0:01:08]} fxg4 {[%emt 0:00:22]} 38. fxg4 {[%emt 0:00:26]} Bg7 {[%emt 0:00:45]} 39. Bc2 {[%emt 0:01:18]} Bc8 {[%emt 0:01:26]} 40. Bd3 {[%emt 0:00:00]} Bd7 {[%emt 0:00:00]} 41. Bc2 {[%emt 0:06:18]} 1/2-1/2

[Event "WYCC 2018 G14"]
[Site "Halkidiki"]
[Date "2018.10.22"]
[Round "4"]
[White "Sim, Jia Ru"]
[Black "Nurgali, Nazerke"]
[Result "0-1"]
[ECO "B15"]
[WhiteElo "1979"]
[BlackElo "2263"]
[Annotator "NA"]
[PlyCount "102"]
[EventDate "2018.10.20"]
[EventType "swiss"]
[EventCountry "GRE"]
[SourceTitle "playchess.com"]
[Source "ChessBase"]
[SourceQuality "1"]
[TimeControl "40/5400+30:1800+30"]

1. e4 {[%emt 0:00:00]} c6 {[%emt 0:00:00]} 2. d4 {[%emt 0:00:00]} d5 {[%emt 0:00:00]} 3. Nc3 {[%emt 0:00:00]} dxe4 {[%emt 0:00:16]} 4. Nxe4 {[%emt 0:00:00]} Nf6 {[%emt 0:00:16]} 5. Nxf6+ {[%emt 0:00:24]} exf6 {[%emt 0:00:05]} 6. c3 {[%emt 0:00:33]} Bd6 {[%emt 0:00:23]} 7. Bd3 {[%emt 0:00:50]} O-O {[%emt 0:00:21]} 8. Ne2 {[%emt 0:00:58]} Qc7 {[%emt 0:00:50] B15: Caro-Kann: 3 Nc3: 3...g6 and 3...dxe4 4 Nxe4 Nf6 5 Nxf6+ exf6} (8... Re8 9. Qc2 h5 10. Be3 Nd7 11. O-O-O Nf8 12. c4 Be6 13. Nc3 Bb4 14. Ne4 Qa5 15. a3 Be7 16. Rhe1 f5 {½-½ (55) Savchenko,B (2562)-Artemiev,V (2706) Sochi 2018}) 9. h3 {[%emt 0:00:36]} Re8 {[%emt 0:00:39]} 10. O-O {[%emt 0:01:50]} Nd7 {[%emt 0:00:54]} 11. Be3 {[%emt 0:01:44]} Nf8 {[%emt 0:00:54]} 12. Qd2 {[%emt 0:03:16]} Ng6 {[%emt 0:03:40]} 13. c4 $146 {[%emt 0:10:02]} ({Predecessor:} 13. Rfe1 Nh4 14. Nf4 b6 15. c4 g6 16. c5 bxc5 17. dxc5 {½-½ (40) Vaibhav,A (1957)-Markovic,M (2474) Backi Petrovac 2016}) 13... b6 {[%emt 0:06:53]} 14. Rfd1 {[%emt 0:04:39]} f5 {[%emt 0:06:33]} 15. f4 {[%emt 0:08:27]} Qe7 {[%emt 0:03:21]} 16. Bf2 {[%emt 0:01:40]} c5 {[%emt 0:00:58]} 17. Re1 {[%emt 0:04:55]} Qc7 {[%emt 0:04:11]} 18. g3 {[%emt 0:02:59]} Bd7 {[%emt 0:00:50]} 19. d5 {[%emt 0:02:43]} h5 {[%emt 0:02:31]} 20. h4 {[%emt 0:01:05]} Nf8 {[%emt 0:00:16]} 21. Qc2 {[%emt 0:02:04]} g6 {[%emt 0:00:56]} 22. Kg2 {[%emt 0:03:51]} Nh7 {[%emt 0:02:23]} 23. Ng1 {[%emt 0:01:06]} Nf6 {[%emt 0:00:43]} 24. Nf3 {[%emt 0:06:24]} Ng4 {[%emt 0:02:11]} 25. Qd2 {[%emt 0:02:54]} a6 {[%emt 0:01:21]} 26. Rxe8+ {[%emt 0:07:37]} Rxe8 {[%emt 0:03:17]} 27. Re1 {[%emt 0:00:15]} Rb8 {[%emt 0:01:25]} 28. b3 {[%emt 0:10:02]} f6 {[%emt 0:05:09]} 29. Qb2 {[%emt 0:09:50]} Kf7 {[%emt 0:02:33]} 30. a4 {[%emt 0:02:25]} Qb7 {[%emt 0:02:46]} 31. Qe2 {[%emt 0:01:44]} Kg7 {[%emt 0:02:31]} 32. Nh2 {[%emt 0:04:01]} Nxf2 {[%emt 0:07:54]} 33. Kxf2 {[%emt 0:01:12]} b5 {[%emt 0:01:15]} 34. axb5 {[%emt 0:00:45]} axb5 $11 {[%emt 0:00:03]} 35. Nf3 {[%emt 0:01:51]} bxc4 {[%emt 0:00:46]} 36. Bxc4 {[%emt 0:00:09]} Ra8 {[%emt 0:01:16]} 37. Qb2 {[%emt 0:01:02]} Qa7 {[%emt 0:02:43]} 38. Re2 {[%emt 0:00:30]} Kf7 {[%emt 0:00:59]} 39. Ne5+ {[%emt 0:01:03]} Kg7 {[%emt 0:06:18]} 40. Nxd7 {[%emt 0:00:00]} Qxd7 {[%emt 0:00:00]} 41. Re6 {[%emt 0:00:19]} Qd8 {[%emt 0:01:56]} 42. Bb5 {[%emt 0:05:35]} Ra5 {[%emt 0:04:37]} 43. Qe2 {[%emt 0:01:09]} Ra1 {[%emt 0:09:14]} 44. Re8 {[%emt 0:05:01]} Qa5 {[%emt 0:03:19]} 45. Ba4 {[%emt 0:00:50]} Qc3 {[%emt 0:01:23]} 46. Re3 {[%emt 0:10:42]} Qd4 {[%emt 0:03:01]} 47. Kf3 {[%emt 0:00:40]} Qxd5+ {[%emt 0:00:40]} 48. Kf2 {[%emt 0:00:16]} Qh1 {[%emt 0:02:46]} 49. Bb5 {[%emt 0:03:14]} Rg1 {[%emt 0:04:25]} 50. Re7+ {[%emt 0:01:07]} Kh6 {[%emt 0:00:26]} 51. Bc6 {[%emt 0:00:11]} Qh2+ {[%emt 0:00:19]} 0-1

[Event "WYCC 2018 G14"]
[Site "Halkidiki"]
[Date "2018.10.22"]
[Round "4"]
[White "Ziegenfuss, Antonia"]
[Black "Jyothsna L"]
[Result "1/2-1/2"]
[ECO "D10"]
[WhiteElo "1969"]
[BlackElo "2060"]
[Annotator "NA"]
[PlyCount "87"]
[EventDate "2018.10.20"]
[EventType "swiss"]
[EventCountry "GRE"]
[SourceTitle "playchess.com"]
[Source "ChessBase"]
[SourceQuality "1"]
[TimeControl "40/5400+30:1800+30"]

1. d4 {[%emt 0:00:00]} d5 {[%emt 0:01:17]} 2. c4 {[%emt 0:00:00]} c6 {[%emt 0:00:07]} 3. cxd5 {[%emt 0:00:00]} cxd5 {[%emt 0:00:05]} 4. Bf4 {[%emt 0:00:02]} Nf6 {[%emt 0:00:27]} 5. e3 {[%emt 0:00:45]} Nc6 {[%emt 0:00:32]} 6. Nc3 {[%emt 0:00:20]} e6 {[%emt 0:00:48]} 7. Nf3 {[%emt 0:02:45]} Bd7 {[%emt 0:01:47]} 8. Be2 {[%emt 0:03:39]} Be7 {[%emt 0:01:02]} 9. h3 {[%emt 0:02:14]} O-O {[%emt 0:01:23]} 10. O-O {[%emt 0:00:11]} Rc8 {[%emt 0:01:30]} 11. Rc1 {[%emt 0:03:01]} a6 {[%emt 0:03:17]} 12. Ne1 {[%emt 0:09:09]} Na7 {[%emt 0:43:35]} 13. Nd3 {[%emt 0:13:33]} Nb5 {[%emt 0:02:26]} 14. Nxb5 {[%emt 0:33:18]} Bxb5 {[%emt 0:00:25]} 15. Rxc8 {[%emt 0:03:14]} Qxc8 {[%emt 0:01:33]} 16. Qc1 {[%emt 0:01:55]} b6 {[%emt 0:11:09]} 17. Rd1 {[%emt 0:06:54]} Qb7 {[%emt 0:04:29]} 18. Rd2 {[%emt 0:02:10]} Rc8 {[%emt 0:03:15]} 19. Rc2 {[%emt 0:02:37]} Rxc2 {[%emt 0:01:38]} 20. Qxc2 {[%emt 0:00:04]} Qc6 {[%emt 0:05:18]} 21. Qxc6 {[%emt 0:01:16]} Bxc6 {[%emt 0:00:03]} 22. Ne5 {[%emt 0:02:15]} Bb7 {[%emt 0:00:13]} 23. a4 {[%emt 0:00:30]} Kf8 {[%emt 0:03:50]} 24. Kf1 {[%emt 0:05:47]} Ke8 {[%emt 0:02:01]} 25. b3 {[%emt 0:01:19]} Ne4 {[%emt 0:02:04]} 26. Nf3 {[%emt 0:02:10]} Bd6 {[%emt 0:01:39]} 27. Bxd6 {[%emt 0:01:30]} Nxd6 {[%emt 0:00:03]} 28. Bd3 {[%emt 0:00:50]} a5 {[%emt 0:02:37]} 29. Ke2 {[%emt 0:00:48]} h6 {[%emt 0:00:49]} 30. Kd2 {[%emt 0:00:36]} f6 {[%emt 0:00:49]} 31. Kc3 {[%emt 0:00:58]} Bc6 {[%emt 0:00:37]} 32. Kb2 {[%emt 0:00:52]} Ke7 {[%emt 0:02:40]} 33. Ka3 {[%emt 0:00:24]} Nb7 {[%emt 0:00:55]} 34. b4 {[%emt 0:00:32]} Kd6 {[%emt 0:00:10]} 35. Nd2 {[%emt 0:00:40]} Kc7 {[%emt 0:01:24]} 36. Nb1 {[%emt 0:00:30]} Nd6 {[%emt 0:00:44]} 37. Nd2 {[%emt 0:00:31]} Nb7 {[%emt 0:00:08]} 38. Nb3 {[%emt 0:00:32]} axb4+ {[%emt 0:00:35]} 39. Kxb4 {[%emt 0:00:07]} Kd6 {[%emt 0:01:16]} 40. Ba6 {[%emt 0:00:00]} Nd8 {[%emt 0:00:00]} 41. Bd3 {[%emt 0:14:36]} Bb7 {[%emt 0:03:06]} 42. Kb5 {[%emt 0:04:07]} Kc7 {[%emt 0:01:12]} 43. a5 {[%emt 0:02:15]} Bc6+ {[%emt 0:02:33]} 44. Kb4 {[%emt 0:05:19]} 1/2-1/2

[Event "WYCC 2018 G14"]
[Site "Halkidiki"]
[Date "2018.10.22"]
[Round "4"]
[White "Hrebenshchykova, Yelyzaveta"]
[Black "Zeng, Sheena"]
[Result "1/2-1/2"]
[ECO "C06"]
[WhiteElo "1968"]
[BlackElo "1807"]
[Annotator "NA"]
[PlyCount "70"]
[EventDate "2018.10.20"]
[EventType "swiss"]
[EventCountry "GRE"]
[SourceTitle "playchess.com"]
[Source "ChessBase"]
[SourceQuality "1"]
[TimeControl "40/5400+30:1800+30"]

1. e4 {[%emt 0:00:00]} e6 {[%emt 0:00:00]} 2. d4 {[%emt 0:00:00]} d5 {[%emt 0:00:00]} 3. Nd2 {[%emt 0:00:00]} Nf6 {[%emt 0:00:00]} 4. e5 {[%emt 0:00:00]} Nfd7 {[%emt 0:00:02]} 5. Bd3 {[%emt 0:00:02]} c5 {[%emt 0:00:11]} 6. c3 {[%emt 0:00:30]} Nc6 {[%emt 0:00:18]} 7. Ne2 {[%emt 0:00:27]} cxd4 {[%emt 0:00:36]} 8. cxd4 {[%emt 0:00:07]} f6 {[%emt 0:00:20]} 9. exf6 {[%emt 0:00:40]} Nxf6 {[%emt 0:00:10]} 10. O-O {[%emt 0:00:21]} Bd6 {[%emt 0:00:16]} 11. Nf3 {[%emt 0:01:13]} Qc7 {[%emt 0:00:09]} 12. Nc3 {[%emt 0:05:03]} a6 {[%emt 0:00:42]} 13. Re1 {[%emt 0:04:32]} O-O {[%emt 0:01:14]} 14. h3 {[%emt 0:06:19]} Bd7 {[%emt 0:03:27]} 15. Bg5 {[%emt 0:10:42]} h6 {[%emt 0:04:10]} 16. Be3 {[%emt 0:03:34]} Nh5 {[%emt 0:13:03]} 17. Ne5 {[%emt 0:28:38]} Nf4 {[%emt 0:04:51]} 18. Nxd7 {[%emt 0:02:02]} Qxd7 {[%emt 0:00:13]} 19. Bf1 {[%emt 0:02:59]} Rf6 {[%emt 0:08:33]} 20. g3 {[%emt 0:03:47]} Ng6 {[%emt 0:00:23]} 21. Bg2 {[%emt 0:01:17]} Nge7 {[%emt 0:09:55]} 22. Qd2 {[%emt 0:04:59]} Nf5 {[%emt 0:02:27]} 23. Rac1 {[%emt 0:01:15]} Raf8 {[%emt 0:02:57]} 24. Rf1 {[%emt 0:02:15]} Qf7 {[%emt 0:08:15]} 25. Na4 {[%emt 0:04:37]} Nxe3 {[%emt 0:07:14]} 26. Qxe3 {[%emt 0:01:01]} Ne7 {[%emt 0:00:17]} 27. Nc5 {[%emt 0:01:48]} Nf5 {[%emt 0:00:18]} 28. Qd3 {[%emt 0:03:02]} Rg6 {[%emt 0:03:29]} 29. Rc2 {[%emt 0:07:23]} Nh4 {[%emt 0:17:10]} 30. Rcc1 {[%emt 0:04:16]} Nxg2 {[%emt 0:02:37]} 31. Kxg2 {[%emt 0:00:05]} Rf6 {[%emt 0:00:22]} 32. Qe2 {[%emt 0:01:16]} Bxc5 {[%emt 0:03:08]} 33. Rxc5 {[%emt 0:00:40]} Rf5 {[%emt 0:02:41]} 34. Rc3 {[%emt 0:00:46]} Qf6 {[%emt 0:01:38]} 35. Rd3 {[%emt 0:00:50]} Kh8 {[%emt 0:02:18]} 1/2-1/2

[Event "WYCC 2018 G14"]
[Site "Halkidiki"]
[Date "2018.10.22"]
[Round "4"]
[White "Randrianarimanana, Alicia"]
[Black "Zhou, Iris"]
[Result "0-1"]
[ECO "B20"]
[WhiteElo "1947"]
[BlackElo "1779"]
[Annotator "NA"]
[PlyCount "64"]
[EventDate "2018.10.20"]
[EventType "swiss"]
[EventCountry "GRE"]
[SourceTitle "playchess.com"]
[Source "ChessBase"]
[SourceQuality "1"]
[TimeControl "40/5400+30:1800+30"]

1. e4 {[%emt 0:00:00]} c5 {[%emt 0:00:00]} 2. d3 {[%emt 0:00:00]} Nc6 {[%emt 0:00:20]} 3. g3 {[%emt 0:00:00]} g6 {[%emt 0:03:02]} 4. Bg2 {[%emt 0:00:00]} Bg7 {[%emt 0:01:11]} 5. f4 {[%emt 0:00:00]} d6 {[%emt 0:00:34]} 6. Nf3 {[%emt 0:00:23]} e5 {[%emt 0:03:45]} 7. O-O {[%emt 0:01:07]} Nge7 {[%emt 0:01:34]} 8. c3 {[%emt 0:01:39]} O-O {[%emt 0:01:26]} 9. Be3 {[%emt 0:01:48]} b6 {[%emt 0:09:06]} 10. Na3 {[%emt 0:23:14]} Be6 $14 {[%emt 0:05:53]} (10... exf4 $11 11. Bxf4 Ne5) 11. d4 {[%emt 0:00:13]} (11. f5 $5 gxf5 12. Ng5 $14) 11... cxd4 {[%emt 0:00:52]} 12. cxd4 exd4 {[%emt 0:08:09]} 13. Nxd4 {[%emt 0:00:48]} Nxd4 {[%emt 0:00:19]} 14. Bxd4 {[%emt 0:00:02]} Bxd4+ {[%emt 0:09:34]} 15. Qxd4 {[%emt 0:00:02]} d5 {[%emt 0:00:16]} 16. e5 {[%emt 0:01:09]} Nf5 {[%emt 0:03:10]} 17. Qd2 {[%emt 0:00:27]} h5 {[%emt 0:03:51]} 18. Rfd1 {[%emt 0:01:33]} Qe7 {[%emt 0:04:22]} 19. Rac1 {[%emt 0:03:43]} Rac8 {[%emt 0:02:01]} 20. Nc2 {[%emt 0:07:40]} Kg7 {[%emt 0:08:49]} 21. Nd4 {[%emt 0:01:02]} Nxd4 {[%emt 0:00:44]} 22. Qxd4 {[%emt 0:00:02]} Rc4 {[%emt 0:00:26]} 23. Qd3 {[%emt 0:02:42]} Qc5+ {[%emt 0:00:38]} 24. Kf1 {[%emt 0:01:56]} Rxc1 {[%emt 0:00:12]} 25. Bf3 {[%emt 0:09:39]} Rxd1+ {[%emt 0:00:16]} 26. Bxd1 {[%emt 0:00:03]} Bh3+ {[%emt 0:00:23]} 27. Ke1 {[%emt 0:00:10]} Qg1+ {[%emt 0:00:54]} 28. Kd2 {[%emt 0:00:04]} Rc8 {[%emt 0:00:30]} 29. Qxd5 {[%emt 0:06:48]} Qf2+ {[%emt 0:00:10]} 30. Be2 {[%emt 0:00:06]} Bg4 {[%emt 0:00:14]} 31. Qd3 {[%emt 0:00:05]} Bxe2 {[%emt 0:00:07]} 32. Qxe2 {[%emt 0:00:08]} Rc2+ {[%emt 0:00:04]} 0-1